Cogmind - Beta 10.2 @@@ ROGUE MODE // 2021.05.29 @ 19:07:38 Player: Demise Result: Destroyed by as-40180 with Assembled F-torch Performance ------------- Evolutions (0) 0 Regions Visited (2) 400 Robots Destroyed (29) 145 Value Destroyed (482) 482 Prototype IDs (4) 80 Alien Tech Used (0) 0 Bonus (0) 0 TOTAL SCORE: 1107 Bonus ------- None Cogmind --------- Core Integrity 0/250 Matter 189/300 Energy 250/250 System Corruption 6% Temperature Cool (20) Movement Core (650) Ox12 Location -10/Mines Parts ------- > --- POWER (1) -------- Ion Engine > --- PROPULSION (2) --- (None) > --- UTILITY (2) ------ Large Storage Unit Large Storage Unit > --- WEAPON (2) ------- Light Assault Rifle Light Assault Rifle > --- INVENTORY (16) --- Light Ion Engine Small Storage Unit Small Storage Unit Small Storage Unit Large Matter Pod (150) Structural Scanner Sensor Array Signal Interpreter Hacking Suite Light Assault Rifle Light Assault Rifle Datajack Mining Laser Peak State ------------ > --- POWER ------------ Ion Engine > --- PROPULSION ------- Light Treads Light Treads > --- UTILITY ---------- Large Storage Unit Large Storage Unit > --- WEAPON ----------- Assault Rifle Assault Rifle > --- INVENTORY -------- Light Ion Engine Small Storage Unit Small Storage Unit Small Storage Unit Large Matter Pod Structural Scanner Sensor Array Signal Interpreter Hacking Suite Light Assault Rifle Light Assault Rifle Light Assault Rifle Datajack Mining Laser Mining Laser [Rating: 8] Favorites ----------- Power Ion Engine Engine Ion Engine Propulsion Light Treads Treads Light Treads Utility Large Storage Unit Storage Large Storage Unit Weapon Assault Rifle Ballistic Gun Assault Rifle Build | -11 -10 -10 ------- Run | Scr Mat Min Slots Evolved . | . . . Power . | . . . Propulsion . | . . . Utility . | . . . Weapon . | . . . Parts Attached 15 | 7 5 3 Power 2 | 1 1 . Engine 2 | 1 1 . Core . | . . . Reactor . | . . . Propulsion 2 | 2 . . Treads 2 | 2 . . Leg . | . . . Wheel . | . . . Hover . | . . . Flight . | . . . Utility 5 | 2 3 . Device . | . . . Storage 5 | 2 3 . Processor . | . . . Hackware . | . . . Protection . | . . . Artifact . | . . . Weapon 6 | 2 1 3 Energy Gun . | . . . Energy Cannon . | . . . Ballistic Gun 6 | 2 1 3 Ballistic Cannon . | . . . Launcher . | . . . Special Weapon . | . . . Impact Weapon . | . . . Slashing Weapon . | . . . Piercing Weapon . | . . . Special Melee Weapon . | . . . Unidentified Prototypes . | . . . Parts Lost 6 | . 2 4 Power 1 | . 1 . Propulsion 2 | . . 2 Utility . | . . . Weapon 3 | . 1 2 Highest Loss Streak 2 | . 1 2 Average Slot Usage (%) 93 | . 91 96 Engine 12 | . 11 14 Treads 26 | . 28 24 Storage 28 | . 28 28 Ballistic Gun 24 | . 22 27 Naked Turns . | . . . Heaviest Build 41 | 14 41 41 Greatest Support 40 | 40 40 40 Greatest Overweight (x) 2 | . 1 2 Average Overweight (x) . | . . 1 Largest Inventory Capacity 16 | 8 16 16 Average Capacity 12 | 7 11 16 Most Carried 16 | 2 16 16 Average Carried 10 | 1 8 15 Final Capacity 16 | 8 16 16 Final Carried 14 | 2 14 13 Class Distribution -------------------- 100% | Mutant Dominant Class ---------------- Mutant | -10/Materials Mutant | -10/Mines Resources | -11 -10 -10 ----------- Run | Scr Mat Min Matter Collected 765 | 350 363 52 Remotely . | . . . Salvage Created 819 | 206 494 119 Parts 67 | 17 44 6 Haulers Intercepted . | . . . Recyclers Shooed . | . . . Parts Field Recycled . | . . . Retrieved Matter . | . . . Parts Self-Destructed . | . . . Prevented . | . . . Kills | -11 -10 -10 ------- Run | Scr Mat Min Combat Hostiles Destroyed 21 | . 14 7 Guns 21 | . 14 7 Classes Destroyed 8 | 3 4 1 Worker 2 | 2 . . Tunneler 5 | 4 . 1 Recycler 1 | 1 . . Operator 2 | . 2 . Watcher 2 | . 2 . Swarmer 9 | . 6 3 Grunt 8 | . 8 . Assembled 4 | . . 4 Best Kill Streak 5 | 5 3 4 Combat Bots Only 3 | . 3 3 Max Kills in Single Turn 1 | 1 1 1 Gunslinging . | . . . Exploded . | . . . Melee . | . . . Uniques/NPCs Destroyed . | . . . Combat | -11 -10 -10 -------- Run | Scr Mat Min Damage Taken 1254 | . 377 877 Core 259 | . 57 202 Absorbed by Shields . | . . . Core Remaining (%) 100 | 100 . . Volleys Fired 101 | 20 51 30 Largest 2 | 2 2 2 Hottest 40 | 40 40 40 Shots Fired 178 | 40 81 57 Gun 178 | 40 81 57 Cannon . | . . . Launcher . | . . . Special . | . . . Kinetic 178 | 40 81 57 Thermal . | . . . Explosive . | . . . Electromagnetic . | . . . Robot Hit Streak 15 | 8 15 13 Robot Miss Streak 4 | 4 2 4 Penetration Max . | . . . Secondary Targets 1 | . 1 . Max Gunslinging Chain 1 | . 1 . Shots Hit Robots 118 | 24 54 40 Core Hits 55 | 11 28 16 Critical Hits . | . . . Critical Kills . | . . . Critical Parts Destroyed . | . . . Melee Attacks . | . . . Impact . | . . . Slashing . | . . . Piercing . | . . . Sneak Attacks . | . . . Combat Hostiles . | . . . Follow-up Attacks . | . . . Damage Inflicted 1425 | 305 649 471 Guns 1425 | 305 649 471 Cannons . | . . . Explosions . | . . . Melee . | . . . Ramming . | . . . Kinetic 1425 | 305 649 471 Thermal . | . . . Explosive . | . . . Electromagnetic . | . . . Impact . | . . . Slashing . | . . . Piercing . | . . . Highest Corruption 6 | . . 6 Average Corruption 5 | . . 5 Corruption Purged . | . . . Effects 6 | . . 6 Message Errors 1 | . . 1 Parts Rejected 1 | . . 1 Data Loss (minor) 1 | . . 1 Targeting Errors 3 | . . 3 Overload Shots . | . . . Overflow Damage . | . . . Projectiles . | . . . Explosions . | . . . Melee . | . . . Knockbacks . | . . . Impact . | . . . Kinetic . | . . . Secondary . | . . . Self-Inflicted Damage . | . . . Shots . | . . . Rammed . | . . . Targets Rammed . | . . . Kicked . | . . . Crushed . | . . . Highest Temperature 41 | . 7 41 Average Temperature 10 | . 2 11 Received Heat Transfer 917 | . 117 800 Siege Activations . | . . . Robots Corrupted . | . . . Combat Hostiles . | . . . Parts Fried . | . . . Impact Corruptions . | . . . Robots Melted . | . . . Combat Hostiles . | . . . Parts Melted . | . . . Heat Transferred . | . . . Parts Sabotaged . | . . . Parts Stolen . | . . . Parts Stripped . | . . . Power Chain Reactions . | . . . Missiles Intercepted . | . . . Alert | -11 -10 -10 ------- Run | Scr Mat Min Peak Influence 283 | 35 283 169 Initial 79 | . 22 79 Average 125 | 20 167 93 Maximum Alert Level 1 | . 1 . Low Security (%) 78 | 100 60 100 Level 1 21 | . 39 . Level 2 . | . . . Level 3 . | . . . Level 4 . | . . . Level 5 . | . . . High Security . | . . . Max Security . | . . . Squads Dispatched 3 | . 3 . Investigation 1 | . 1 . Extermination . | . . . Reinforcement 2 | . 2 . Assault . | . . . Garrison . | . . . Intercept . | . . . Construction Impeded . | . . . Haulers Reinforced . | . . . Stealth | -11 -10 -10 --------- Run | Scr Mat Min Distress Signals 1 | . 1 . Communications Jammed . | . . . Distress Signals . | . . . Times Spotted 49 | . 29 20 Peak Tracking Total 12 | . 5 12 Tactical Retreats 7 | . 3 4 Traps | -11 -10 -10 ------- Run | Scr Mat Min Traps Triggered 1 | . 1 . Indirectly . | . . . Trap Hack Attempts . | . . . Triggered . | . . . Disarmed . | . . . Reprogrammed . | . . . Reused . | . . . Traps Extracted . | . . . Installed . | . . . Triggered . | . . . Machines | -11 -10 -10 ---------- Run | Scr Mat Min Machines Disabled . | . . . Max in Single Turn . | . . . Machines Sabotaged . | . . . Garrisons Compromised . | . . . Overloaded Fab Kills . | . . . Fab Network Shutdowns . | . . . Hacking | -11 -10 -10 --------- Run | Scr Mat Min Machines Accessed 4 | . 4 . Terminals 4 | . 4 . Fabricators . | . . . Repair Stations . | . . . Recycling Units . | . . . Scanalyzers . | . . . Garrison Access . | . . . Total Hacks 12 | . 12 . Successful 9 | . 9 . Failed 3 | . 3 . Catastrophic 1 | . 1 . Database Lockouts . | . . . Manual 9 | . 9 . Terminals 12 | . 12 . Fabricators . | . . . Repair Stations . | . . . Recycling Units . | . . . Scanalyzers . | . . . Garrison Access . | . . . Terminal Hacks 5 | . 5 . Part Schematic 1 | . 1 . Robot Analysis 2 | . 2 . Prototype ID Bank 2 | . 2 . Fabricator Hacks . | . . . Repair Station Hacks . | . . . Recycling Unit Hacks . | . . . Scanalyzer . | . . . Garrison Access Hacks . | . . . Unauthorized Hacks 4 | . 4 . Terminals 4 | . 4 . Botnet 3 | . 3 . Operators 1 | . 1 . Fabricators . | . . . Repair Stations . | . . . Recycling Units . | . . . Scanalyzers . | . . . Garrison Access . | . . . Data Cores Recovered . | . . . Used . | . . . Hacking Detections 4 | . 4 . Full Trace Events . | . . . Feedback Events . | . . . Feedback Blocked . | . . . Robot Schematics Acquired . | . . . Robots Built . | . . . Matter . | . . . Time . | . . . Total Robot Build Rating . | . . . Part Schematics Acquired 1 | . 1 . Parts Built . | . . . Matter . | . . . Time . | . . . Total Part Build Rating . | . . . Parts Repaired . | . . . Time . | . . . Parts Recycled . | . . . Recycled Matter . | . . . Retrieved Matter . | . . . Retrieved Components . | . . . Parts Scanalyzed . | . . . Part Schematics Acquired . | . . . Parts Damaged . | . . . Bothacking | -11 -10 -10 ------------ Run | Scr Mat Min Used RIF Installer . | . . . Robots Hacked . | . . . Non-combat . | . . . Combat . | . . . Robot Hacks Applied . | . . . Relay Couplers Released . | . . . Robots Rewired . | . . . Allies Hacked . | . . . Hacks Repelled . | . . . Allies | -11 -10 -10 -------- Run | Scr Mat Min Total Allies . | . . . Largest Group . | . . . Highest-Rated Group . | . . . Highest-Rated Ally . | . . . Total Orders . | . . . Ally Attacks . | . . . Total Damage . | . . . Kills . | . . . Allies Corrupted . | . . . Allies Melted . | . . . Intel | -11 -10 -10 ------- Run | Scr Mat Min Robot Analysis Total 2 | . 2 . Derelict Logs Recovered 2 | . . 2 Drone Launches . | . . . Drone Recoveries . | . . . Exploration | -11 -10 -10 ------------- Run | Scr Mat Min Turns Passed 1793 | 189 965 639 Spaces Moved 876 | 80 493 303 Core 6 | 6 . . Treads 870 | 74 493 303 Legs . | . . . Wheels . | . . . Hover . | . . . Flight . | . . . Fastest Speed 50 | 50 160 160 Average Speed 166 | 151 160 181 Slowest Speed 200 | 160 180 200 Overloaded Moves . | . . . Propulsion Burnouts . | . . . Robots Hopped . | . . . Cave-ins Triggered . | . . . Exploration Rate (%) 42 | 4 71 51 Regions Visited 2 Branch Regions 1 Pre-discovered Areas 1 | . . 1 Known Exits Taken . | . . . Unknown Exits Taken 2 | 1 1 . Scrap Searched 1 | . . 1 Spaces Dug . | . . . Terrain Destroyed . | . . . Melee . | . . . Projectile . | . . . AOE . | . . . Terrain Rammed . | . . . Walls Destroyed . | . . . Machines Disabled . | . . . Actions | -11 -10 -10 --------- Run | Scr Mat Min Total 1041 | 108 593 340 Wait 31 | . 31 . Move 874 | 79 492 303 Hop . | . . . Pick Up 17 | 2 12 3 Fast Attach 8 | 7 1 . Attach 4 | . 1 3 Detach . | . . . Swap 3 | . 3 . Drop 3 | . 2 1 Fire 101 | 20 51 30 Melee . | . . . Ram . | . . . Kick . | . . . Crush . | . . . Escape Stasis . | . . . Rewire . | . . . Trap . | . . . Miscellaneous . | . . . Route ------- -11/Scrapyard -10/Materials (discovered 3 exits: [*Mat x2] / [*Min]) -10/Mines (discovered 2 exits: [*Mat] / [*Exi]) History --------- Turn | Location | Event 14 | -11/Scrapyard | Discovered new exit (range 15) 190 | -11/Scrapyard | Entered Materials 303 | -10/Materials | Build established: Mutant 834 | -10/Materials | Discovered new exit (range 7) 1004 | -10/Materials | Discovered new exit (range 16) 1114 | -10/Materials | Discovered new exit (range 11) 1155 | -10/Materials | Entered Mines 1166 | -10/Mines | Learned Materials trap positions 1232 | -10/Mines | Discovered new exit (range 11) 1443 | -10/Mines | Learned location of Mines (-9) 1549 | -10/Mines | Deemed a non-threat by the Exiles lab entrance 1549 | -10/Mines | Discovered new exit (range 5) 1653 | -10/Mines | Assembled infested the area 1691 | -10/Mines | Core integrity fell below 50% 1726 | -10/Mines | Core integrity fell below 20% 1794 | -10/Mines | Destroyed by as-40180 with Assembled F-torch Last Messages --------------- 01693_ Lgt. Treads destroyed. 01693_ System corrupted by crushing effect (+3). 01696_ as-34249 shuts down. 01722_ as-02778 destroyed. 01723_ System corrupted: Component data lost. 01749_ Lgt. Treads destroyed. 01758_ as-70038 destroyed. 01761_ Destroyed Asb. Hover Unit. 01762_ Knocked back. 01768_ System corrupted: Assault Rifle rejected. 01770_ System corrupted: Assault Rifle targeting data glitched. 01773_ Assault Rifle destroyed. 01776_ Destroyed Asb. F-torch. 01776_ System corrupted: Lgt. Assault Rifle targeting data glitched. 01781_ K-01 Serf collects debris. 01784_ System corrupted: Lgt. Assault Rifle targeting data glitched. 01786_ HVQVDHVOO1|FR%EXOF2ILVSXIPPW D N0BK 01787_ Destroyed Asb. Hover Unit. 01787_ as-34249 destroyed. 01789_ as-20994 destroyed. Map ----- +----------------------------------------------------+ | | | | | | | | | | | | | | | ?????????????????????????????????????? | | ?????????????????????????????????????? | | ?????????????????????????????????????? | | ?????????????????????###########?##### | | ?????????????????????# ### | | ?????????????????????# | | ?????????????????????# ### ##### | | ?????????????????????# #?# ##???? | | ??????????####???????# #?## ##????? | | ?????????## ######### #??## #?????? | | ?????????# #???# #?????? | | ?????????# #???# #?????? | | ?????????# ##########???# #?????? | | ?????????# ##????????????# #?????? | | ?????????## ##?????????????# #?????? | | ??????????####??????????????# #???### | | ????????????????????????????# #??## | | ????????##################### #### | | ???#